Cogmind - Beta 16 @@@ ROGUE MODE // 2026.01.26 @ 18:17:55 Player: luckinvolved Result: Destroyed by C-35 Carver with Carbide Saw Performance ------------- Evolutions (6) 3000 Regions Visited (15) 3000 Robots Destroyed (23) 115 Value Destroyed (315) 315 Prototype IDs (6) 120 Alien Tech Used (0) 0 Bonus (1628) 1628 TOTAL SCORE: 8178 Bonus ------- Pacifist 928 Entered Garrisons 200 Entered DSFs 500 Cogmind --------- Core Integrity 0/1150 Matter 232/300 Energy 68/100 System Corruption 26% Temperature Cool (0) Movement Core (50) Location -4/Garrison Parts ------- > --- POWER (1) -------- (None) > --- PROPULSION (7) --- (None) > --- UTILITY (9) ------ (None) > --- WEAPON (2) ------- (None) > --- INVENTORY (5) ---- Advanced Terrain Scan Processor Peak State ------------ > --- POWER ------------ Neutrino Core > --- PROPULSION ------- Cooled VTOL Module Cooled VTOL Module Field Propulsion Drive Field Propulsion Array Impulse Thruster Array > --- UTILITY ---------- Structural Scanner Machine Analyzer Triangulator Improved Signal Interpreter Seismic Detector Transmission Jammer Improved Hacking Suite Improved System Shield > --- WEAPON ----------- Advanced Datajack Heavy Pick > --- INVENTORY -------- Impulse Thruster Array Advanced Terrain Scan Processor Improved Component Analysis Suite Gamma Bomb Array [Rating: 94] Favorites ----------- Power Enhanced Fission Core Engine Ion Engine Power Core Enhanced Fission Core Reactor Cold Fusion Reactor Propulsion Cooled VTOL Module Flight Unit Cooled VTOL Module Utility Signal Interpreter Device Seismic Detector Processor Signal Interpreter Hackware Improved Hacking Suite Weapon Heavy Pick Launcher Gamma Bomb Array Impact Weapon Heavy Flail Piercing Weapon Heavy Pick Special Melee Weapon Advanced Datajack Build | -11 -10 -10 -9 -9 -9 -8 -8 -7 -6 -5 -4 -4 -4 -4 -4 ------- Run | Yrd Mat Min Mat Min Exi Min Mat Fac Fac Fac Fac Was Fac DSF Gar Slots Evolved 12 | . . . 2 . . . 2 2 2 2 2 . . . . Power . | . . . . . . . . . . . . . . . . Propulsion 5 | . . . 1 . . . 1 1 1 . 1 . . . . Utility 7 | . . . 1 . . . 1 1 1 2 1 . . . . Weapon . | . . . . . . . . . . . . . . . . Parts Attached 41 | . 1 2 . . . . 1 7 2 14 7 . . 2 5 Power 5 | . . 1 . . . . . . . 1 2 . . 1 . Engine 1 | . . 1 . . . . . . . . . . . . . Core 2 | . . . . . . . . . . 1 . . . 1 . Reactor 2 | . . . . . . . . . . . 2 . . . . Propulsion 16 | . 1 . . . . . . 4 . 6 1 . . 1 3 Treads . | . . . . . . . . . . . . . . . . Leg . | . . . . . . . . . . . . . . . . Wheel . | . . . . . . . . . . . . . . . . Hover . | . . . . . . . . . . . . . . . . Flight 16 | . 1 . . . . . . 4 . 6 1 . . 1 3 Utility 15 | . . 1 . . . . . 3 2 5 3 . . . 1 Device 10 | . . . . . . . . 2 1 4 2 . . . 1 Storage . | . . . . . . . . . . . . . . . . Processor 3 | . . 1 . . . . . 1 1 . . . . . . Hackware 2 | . . . . . . . . . . 1 1 . . . . Protection . | . . . . . . . . . . . . . . . . Artifact . | . . . . . . . . . . . . . . . . Weapon 5 | . . . . . . . 1 . . 2 1 . . . 1 Energy Gun . | . . . . . . . . . . . . . . . . Energy Cannon . | . . . . . . . . . . . . . . . . Ballistic Gun . | . . . . . . . . . . . . . . . . Ballistic Cannon . | . . . . . . . . . . . . . . . . Launcher 1 | . . . . . . . . . . . . . . . 1 Special Weapon . | . . . . . . . . . . . . . . . . Impact Weapon 2 | . . . . . . . 1 . . 1 . . . . . Slashing Weapon . | . . . . . . . . . . . . . . . . Piercing Weapon 1 | . . . . . . . . . . 1 . . . . . Special Melee Weapon 1 | . . . . . . . . . . . 1 . . . . Unidentified Prototypes 4 | . . . . . . . . 1 . 2 1 . . . . Corrupted Parts 2 | . . . . . . . . . . . . . . . 2 System Corruption 14 | . . . . . . . . . . . . . . . 14 Parts Lost 25 | . . . . . . . 1 . . 7 . . . 4 13 Power 2 | . . . . . . . . . . . . . . 1 1 Propulsion 14 | . . . . . . . 1 . . 4 . . . 3 6 Utility 7 | . . . . . . . . . . 3 . . . . 4 Weapon 2 | . . . . . . . . . . . . . . . 2 Highest Loss Streak 17 | . . . . . . . 1 . . 3 . . . 4 17 To Critical Strikes . | . . . . . . . . . . . . . . . . Average Backups 2 | . . . 1 1 1 1 1 2 3 4 4 4 5 4 3 Power . | . . . 1 1 1 1 1 1 . . 1 1 1 . . Propulsion . | . . . . . . . . . . . . 1 1 1 . Utility 1 | . . . . . . . . 1 2 2 2 2 2 2 2 Weapon . | . . . . . . . . . 1 . . . 1 1 . Tool/Special . | . . . . . . . . . . . . . . . . Unused Backups 2 | . . . . . . . . . . 1 . . . . 1 Power . | . . . . . . . . . . . . . . . . Propulsion . | . . . . . . . . . . . . . . . . Utility 2 | . . . . . . . . . . 1 . . . . 1 Weapon . | . . . . . . . . . . . . . . . . Tool/Special . | . . . . . . . . . . . . . . . . Average Slot Usage (%) 56 | . 7 24 22 22 22 22 14 36 68 89 82 89 89 80 46 Core 2 | . . . . . . . . . . 3 5 5 5 5 2 Flight 20 | . 7 14 11 11 11 11 3 14 26 30 30 31 31 23 12 Device 12 | . . . . . . . . 5 15 24 19 21 21 21 11 Processor 11 | . . 10 11 11 11 11 9 7 15 17 10 10 10 10 6 Hackware 2 | . . . . . . . . . . 1 9 10 10 10 8 Impact Weapon 2 | . . . . . . . 2 7 6 3 . . . . . Piercing Weapon 2 | . . . . . . . . . . 4 5 5 5 5 3 Peak Build Rating 94 | . 1 3 2 2 2 2 4 31 38 75 82 83 83 94 90 Average Rating 40 | . . 1 2 2 2 2 2 15 34 62 73 82 83 81 60 On Entrance 29 | . . 1 2 2 2 2 2 4 31 38 57 82 83 83 88 Avg Prop Armor Cover (%) 5 | . . . . . . . . 9 5 2 . . . . 13 Naked Turns 29 | . 22 . . . . . . . . . . . . . 7 Heaviest Build 26 | . . . . . . . 3 5 11 26 21 21 21 22 22 Greatest Support 56 | 3 4 4 4 4 4 4 4 17 17 40 47 43 43 55 56 Greatest Overweight (x) . | . . . . . . . . . . . . . . . . Average Overweight (x) . | . . . . . . . . . . . . . . . . Largest Inventory Capacity 5 | 5 5 5 5 5 5 5 5 5 5 5 5 5 5 5 5 Average Capacity 5 | 5 5 5 5 5 5 5 5 5 5 5 5 5 5 5 5 Most Carried 5 | . . 1 1 1 1 1 2 4 5 5 5 5 5 5 5 Average Carried 3 | . . . 1 1 1 1 1 2 3 4 3 4 5 4 3 Final Capacity 5 | 5 5 5 5 5 5 5 5 5 5 5 5 5 5 5 5 Final Carried 5 | . . 1 1 1 1 1 1 4 3 5 4 5 5 5 1 Class Distribution -------------------- 46% | Mutant 22% | Hacker-Sprinter 16% | Infiltrator-Ninja 8% | Infiltrator-Sprinter 4% | Scout Dominant Class ---------------- Mutant | -10/Materials Mutant | -10/Mines Mutant | -9/Materials Mutant | -9/Mines Mutant | -9/Exiles Mutant | -8/Mines Mutant | -8/Materials Mutant | -7/Factory Scout | -6/Factory Infiltrator-Ninja | -5/Factory Hacker-Sprinter | -4/Factory Hacker-Sprinter | -4/Waste Hacker-Sprinter | -4/Factory Hacker-Sprinter | -4/DSF Mutant | -4/Garrison Resources | -11 -10 -10 -9 -9 -9 -8 -8 -7 -6 -5 -4 -4 -4 -4 -4 ----------- Run | Yrd Mat Min Mat Min Exi Min Mat Fac Fac Fac Fac Was Fac DSF Gar Matter Collected 622 | 87 50 66 . . . . . 92 . 240 38 . . . 49 Remotely . | . . . . . . . . . . . . . . . . Salvage Created 761 | . . . . . . . . 257 . 349 38 . . . 117 Parts 25 | . . . . . . . . 4 . 12 4 . . . 5 Haulers Intercepted 5 | . . . . . . . . 2 . 3 . . . . . Recyclers Shooed . | . . . . . . . . . . . . . . . . Parts Field Recycled . | . . . . . . . . . . . . . . . . Retrieved Matter . | . . . . . . . . . . . . . . . . Parts Self-Destructed . | . . . . . . . . . . . . . . . . Prevented . | . . . . . . . . . . . . . . . . Parts Restored . | . . . . . . . . . . . . . . . . Kills | -11 -10 -10 -9 -9 -9 -8 -8 -7 -6 -5 -4 -4 -4 -4 -4 ------- Run | Yrd Mat Min Mat Min Exi Min Mat Fac Fac Fac Fac Was Fac DSF Gar Combat Hostiles Destroyed 8 | . . . . . . . . . . 4 . . . . 4 Melee 4 | . . . . . . . . . . 4 . . . . . AOE 4 | . . . . . . . . . . . . . . . 4 Classes Destroyed 7 | . . . . . . . . 4 . 1 2 . . . . Worker 6 | . . . . . . . . 6 . . . . . . . Builder 1 | . . . . . . . . . . . 1 . . . . Tunneler 1 | . . . . . . . . 1 . . . . . . . Hauler 5 | . . . . . . . . 2 . 3 . . . . . Recycler 1 | . . . . . . . . 1 . . . . . . . Operator 1 | . . . . . . . . . . . 1 . . . . Swarmer 8 | . . . . . . . . . . 4 . . . . 4 Best Kill Streak 9 | . . . . . . . . 9 . 4 1 . . . 4 Combat Bots Only 4 | . . . . . . . . . . 4 . . . . 4 Max Kills in Single Turn 3 | . . . . . . . . 1 . 1 1 . . . 3 Gunslinging . | . . . . . . . . . . . . . . . . Exploded 3 | . . . . . . . . . . . . . . . 3 Melee 1 | . . . . . . . . . . 1 . . . . . Uniques/NPCs Destroyed . | . . . . . . . . . . . . . . . . Combat | -11 -10 -10 -9 -9 -9 -8 -8 -7 -6 -5 -4 -4 -4 -4 -4 -------- Run | Yrd Mat Min Mat Min Exi Min Mat Fac Fac Fac Fac Was Fac DSF Gar Hostile Shots Fired 256 | . . . . 2 . 3 15 9 . 67 . . . 10 150 Missed 117 | . . . . 2 . 2 5 8 . 29 . . . 6 65 Hits 139 | . . . . . . 1 10 1 . 38 . . . 4 85 Melee 42 | . . . . . . . . . . . . . . 2 40 Projectile 97 | . . . . . . 1 10 1 . 38 . . . 2 45 AOE 1 | . . . . . . . . . . . . . . 1 . Critical Strikes 17 | . . . . . . . . . . . . . . 1 16 Damage Taken 2798 | . . . . . . 13 121 74 . 624 . . . 171 1795 Core 1460 | . . . . . . . 105 29 . 171 . . . 11 1144 Absorbed by Shields 114 | . . . . . . . . . . . . . . . 114 Core Remaining (%) 93 | 100 . 100 . . . 100 80 95 100 82 . . . . . Volleys Fired 2 | . . . . . . . . . . . . . . . 2 Largest 1 | . . . . . . . . . . . . . . . 1 Hottest 80 | . . . . . . . . . . . . . . . 80 Shots Fired 2 | . . . . . . . . . . . . . . . 2 Gun . | . . . . . . . . . . . . . . . . Cannon . | . . . . . . . . . . . . . . . . Launcher 2 | . . . . . . . . . . . . . . . 2 Special . | . . . . . . . . . . . . . . . . Kinetic . | . . . . . . . . . . . . . . . . Thermal . | . . . . . . . . . . . . . . . . Explosive . | . . . . . . . . . . . . . . . . Electromagnetic 2 | . . . . . . . . . . . . . . . 2 Robot Hit Streak . | . . . . . . . . . . . . . . . . Robot Miss Streak . | . . . . . . . . . . . . . . . . Penetration Max . | . . . . . . . . . . . . . . . . Secondary Targets . | . . . . . . . . . . . . . . . . Shots Hit Robots 23 | . . . . . . . . 12 . 9 2 . . . . Core Hits 17 | . . . . . . . . 1 . 6 1 . . . 9 Critical Kills 1 | . . . . . . . . 1 . . . . . . . Critical Parts Destroyed 4 | . . . . . . . . 4 . . . . . . . Critical Strikes 6 | . . . . . . . . 5 . 1 . . . . . Smash 5 | . . . . . . . . 5 . . . . . . . Impale 1 | . . . . . . . . . . 1 . . . . . Melee Attacks 52 | . . . . . . . 4 15 1 27 5 . . . . Impact 25 | . . . . . . . 4 15 1 5 . . . . . Slashing . | . . . . . . . . . . . . . . . . Piercing 27 | . . . . . . . . . . 22 5 . . . . Sneak Attacks 14 | . . . . . . . . 10 . 3 1 . . . . Combat Hostiles . | . . . . . . . . . . . . . . . . Follow-up Attacks . | . . . . . . . . . . . . . . . . Damage Inflicted 2066 | . . . . . . . . 1155 . 591 144 . . . 176 Guns . | . . . . . . . . . . . . . . . . Cannons . | . . . . . . . . . . . . . . . . Explosions 157 | . . . . . . . . . . . . . . . 157 Melee 1890 | . . . . . . . . 1155 . 591 144 . . . . Ramming 19 | . . . . . . . . . . . . . . . 19 Kinetic . | . . . . . . . . . . . . . . . . Thermal . | . . . . . . . . . . . . . . . . Explosive . | . . . . . . . . . . . . . . . . Electromagnetic 157 | . . . . . . . . . . . . . . . 157 Impact 1418 | . . . . . . . . 1155 . 263 . . . . . Slashing . | . . . . . . . . . . . . . . . . Piercing 472 | . . . . . . . . . . 328 144 . . . . Highest Corruption 26 | . . . . . . . . 2 . 3 . 6 6 6 26 Average Corruption 7 | . . . . . . . . 1 . 2 . 6 6 6 15 Corruption Purged 2 | . . . . . . . . 2 . . . . . . . Corruption Blocked . | . . . . . . . . . . . . . . . . Effects 5 | . . . . . . . . 2 . . . . . . 3 Message Errors 1 | . . . . . . . . . . . . . . . 1 Matter Fused 1 | . . . . . . . . 1 . . . . . . . Energy Discharges 1 | . . . . . . . . 1 . . . . . . . Parts Rejected 1 | . . . . . . . . . . . . . . . 1 Data Loss (major) 1 | . . . . . . . . . . . . . . . 1 Overload Shots . | . . . . . . . . . . . . . . . . Overflow Damage 894 | . . . . . . . . 733 . 123 38 . . . . Projectiles . | . . . . . . . . . . . . . . . . Explosions . | . . . . . . . . . . . . . . . . Melee 894 | . . . . . . . . 733 . 123 38 . . . . Knockbacks . | . . . . . . . . . . . . . . . . Impact . | . . . . . . . . . . . . . . . . Kinetic . | . . . . . . . . . . . . . . . . Secondary . | . . . . . . . . . . . . . . . . Self-Inflicted Damage 41 | . . . . . . . . . . . . . . . 41 Shots 3 | . . . . . . . . . . . . . . . 3 Rammed . | . . . . . . . . . . . . . . . . Targets Rammed . | . . . . . . . . . . . . . . . . Kicked . | . . . . . . . . . . . . . . . . Crushed . | . . . . . . . . . . . . . . . . Highest Temperature 276 | . . . . . . . . . . 276 4 4 2 . 74 Average Temperature 38 | . . . . . . . . . . 61 2 2 2 . 31 Received Heat Transfer 198 | . . . . . . 9 . . . 27 . . . . 162 Siege Activations . | . . . . . . . . . . . . . . . . Martial Activations . | . . . . . . . . . . . . . . . . Shielding Activations . | . . . . . . . . . . . . . . . . Robots Disrupted . | . . . . . . . . . . . . . . . . Combat Hostiles . | . . . . . . . . . . . . . . . . Robots Corrupted 2 | . . . . . . . . 1 . 1 . . . . . Combat Hostiles . | . . . . . . . . . . . . . . . . Parts Fried 11 | . . . . . . . . 10 . 1 . . . . . Impact Corruptions 16 | . . . . . . . . 15 . 1 . . . . . Robots Melted . | . . . . . . . . . . . . . . . . Combat Hostiles . | . . . . . . . . . . . . . . . . Parts Melted . | . . . . . . . . . . . . . . . . Heat Transferred . | . . . . . . . . . . . . . . . . Parts Sabotaged . | . . . . . . . . . . . . . . . . Parts Stolen . | . . . . . . . . . . . . . . . . Parts Stripped . | . . . . . . . . . . . . . . . . Power Chain Reactions . | . . . . . . . . . . . . . . . . Alert | -11 -10 -10 -9 -9 -9 -8 -8 -7 -6 -5 -4 -4 -4 -4 -4 ------- Run | Yrd Mat Min Mat Min Exi Min Mat Fac Fac Fac Fac Was Fac DSF Gar Maximum Alert Level 1 | . . . . . . . . . . . . . . . 1 Low Security (%) 99 | 100 100 100 100 100 . 100 100 100 100 100 100 100 100 100 90 Level 1 . | . . . . . . . . . . . . . . . 9 Level 2 . | . . . . . . . . . . . . . . . . Level 3 . | . . . . . . . . . . . . . . . . Level 4 . | . . . . . . . . . . . . . . . . Level 5 . | . . . . . . . . . . . . . . . . High Security . | . . . . . . . . . . . . . . . . Max Security . | . . . . . . . . . . . . . . . . Peak Influence 212 | . 15 5 . . . 80 72 38 23 172 69 16 11 15 212 Initial 69 | . . 5 . . . . 27 25 8 1 69 1 11 10 3 Average 36 | . 2 3 . . . 35 45 13 11 46 32 1 11 4 115 Influence Increases 1016 | . 22 . . . . 90 79 76 15 346 32 15 4 15 322 Destroy 0b10 Robot/C 160 | . . . . . . . . . . 80 . . . . 80 Destroy 0b10 Robot/NC 75 | . . . . . . . . 50 . 15 10 . . . . Destroy Leader 20 | . . . . . . . . 4 . 16 . . . . . Successful Hack 49 | . 7 . . . . . . 5 . 5 16 . 4 . 12 Disable Machine 15 | . . . . . . . . . 15 . . . . . . Destroy Structure 52 | . . . . . . . 4 2 . 20 6 . . . 20 Partial Spotted 90 | . . . . . . . 15 . . 30 . 15 . . 30 Lose Combat Pursuer 555 | . 15 . . . . 90 60 15 . 180 . . . 15 180 Influence Decreases 804 | . 7 15 . . . 20 93 114 30 207 169 4 5 25 115 Entered New Map 185 | . . 10 . . . . 43 31 10 2 73 4 5 5 2 Time Decay 406 | . 7 5 . . . 20 40 83 20 135 96 . . . . Lost Part 213 | . . . . . . . 10 . . 70 . . . 20 113 Squads Dispatched 6 | . . . . . . . 2 2 . 1 . . . 1 . Investigation 2 | . . . . . . . 2 . . . . . . . . Extermination 2 | . . . . . . . . 1 . 1 . . . . . Reinforcement 2 | . . . . . . . . 1 . . . . . 1 . Assault . | . . . . . . . . . . . . . . . . Garrison . | . . . . . . . . . . . . . . . . Intercept . | . . . . . . . . . . . . . . . . Searches Triggered . | . . . . . . . . . . . . . . . . Construction Impeded . | . . . . . . . . . . . . . . . . Haulers Reinforced 1 | . . . . . . . . 1 . . . . . . . Active Scanning Responses . | . . . . . . . . . . . . . . . . Cargo Convoy Interrupts . | . . . . . . . . . . . . . . . . Stealth | -11 -10 -10 -9 -9 -9 -8 -8 -7 -6 -5 -4 -4 -4 -4 -4 --------- Run | Yrd Mat Min Mat Min Exi Min Mat Fac Fac Fac Fac Was Fac DSF Gar Distress Signals 2 | . 1 . . . . . 1 . . . . . . . . Communications Jammed . | . . . . . . . . . . . . . . . . Distress Signals . | . . . . . . . . . . . . . . . . Times Spotted 98 | . 7 . . 2 . 6 11 3 . 29 1 4 . 4 31 Peak Tracking Total 21 | . 7 . . 2 . 6 7 3 . 8 1 4 . 3 21 Tactical Retreats 16 | . 1 . . . . 2 2 1 . 6 . . . 1 3 ECM-based Alert Blocks 1 | . . . . . . . . . . 1 . . . . . Traps | -11 -10 -10 -9 -9 -9 -8 -8 -7 -6 -5 -4 -4 -4 -4 -4 ------- Run | Yrd Mat Min Mat Min Exi Min Mat Fac Fac Fac Fac Was Fac DSF Gar Traps Triggered 15 | . . . . . . . . 3 . 1 1 . . . 10 Indirectly 7 | . . . . . . . . . . . . . . . 7 Trap Hack Attempts . | . . . . . . . . . . . . . . . . Triggered . | . . . . . . . . . . . . . . . . Disarmed . | . . . . . . . . . . . . . . . . Reprogrammed . | . . . . . . . . . . . . . . . . Reused . | . . . . . . . . . . . . . . . . Traps Extracted . | . . . . . . . . . . . . . . . . Installed . | . . . . . . . . . . . . . . . . Triggered . | . . . . . . . . . . . . . . . . Machines | -11 -10 -10 -9 -9 -9 -8 -8 -7 -6 -5 -4 -4 -4 -4 -4 ---------- Run | Yrd Mat Min Mat Min Exi Min Mat Fac Fac Fac Fac Was Fac DSF Gar Machines Disabled 1 | . . . . . . . . . 1 . . . . . . Max in Single Turn 1 | . . . . . . . . . 1 . . . . . . Garrison Access 1 | . . . . . . . . . . 1 . . . . . Machines Repaired . | . . . . . . . . . . . . . . . . Machines Dismantled . | . . . . . . . . . . . . . . . . Machines Sabotaged . | . . . . . . . . . . . . . . . . Overloaded Fab Kills . | . . . . . . . . . . . . . . . . Hacking | -11 -10 -10 -9 -9 -9 -8 -8 -7 -6 -5 -4 -4 -4 -4 -4 --------- Run | Yrd Mat Min Mat Min Exi Min Mat Fac Fac Fac Fac Was Fac DSF Gar Machines Accessed 15 | . 1 . . . . . 2 3 1 4 2 . 1 . 1 Terminals 9 | . 1 . . . . . 2 1 . 2 1 . 1 . 1 Fabricators 4 | . . . . . . . . 2 1 1 . . . . . Repair Stations . | . . . . . . . . . . . . . . . . Recycling Units . | . . . . . . . . . . . . . . . . Scanalyzers 1 | . . . . . . . . . . . 1 . . . . Garrison Access 1 | . . . . . . . . . . 1 . . . . . Total Hacks 45 | . 3 . . . . . 4 8 3 9 15 . 1 . 2 Successful 22 | . 1 . . . . . . 3 . 3 13 . 1 . 1 Failed 23 | . 2 . . . . . 4 5 3 6 2 . . . 1 Catastrophic 6 | . 1 . . . . . 4 1 . . . . . . . Database Lockouts . | . . . . . . . . . . . . . . . . Manual 17 | . 1 . . . . . 4 3 . 2 7 . . . . Terminals 30 | . 3 . . . . . 4 4 . 4 12 . 1 . 2 Fabricators 10 | . . . . . . . . 4 3 3 . . . . . Repair Stations . | . . . . . . . . . . . . . . . . Recycling Units . | . . . . . . . . . . . . . . . . Scanalyzers 3 | . . . . . . . . . . . 3 . . . . Garrison Access 2 | . . . . . . . . . . 2 . . . . . Terminal Hacks 9 | . 1 . . . . . . 1 . . 5 . 1 . 1 Record 1 | . . . . . . . . . . . 1 . . . . Part Schematic 1 | . . . . . . . . . . . 1 . . . . Prototype ID Bank 1 | . . . . . . . . 1 . . . . . . . Open DSF 1 | . . . . . . . . . . . . . 1 . . Branch Access Points 1 | . 1 . . . . . . . . . . . . . . Emergency Access Points 2 | . . . . . . . . . . . 1 . . . 1 Maintenance Status 1 | . . . . . . . . . . . 1 . . . . Zone Layout 1 | . . . . . . . . . . . 1 . . . . Fabricator Hacks 2 | . . . . . . . . 1 . 1 . . . . . Network Status 2 | . . . . . . . . 1 . 1 . . . . . Repair Station Hacks . | . . . . . . . . . . . . . . . . Recycling Unit Hacks . | . . . . . . . . . . . . . . . . Scanalyzer 3 | . . . . . . . . . . . 3 . . . . Retrieve Study 3 | . . . . . . . . . . . 3 . . . . Garrison Access Hacks 1 | . . . . . . . . . . 1 . . . . . Seal Access 1 | . . . . . . . . . . 1 . . . . . Unauthorized Hacks 7 | . . . . . . . . 1 . 1 5 . . . . Terminals 7 | . . . . . . . . 1 . 1 5 . . . . Track 1 | . . . . . . . . . . . 1 . . . . Assimilate 1 | . . . . . . . . . . . 1 . . . . Botnet 3 | . . . . . . . . 1 . 1 1 . . . . Operators 1 | . . . . . . . . . . . 1 . . . . Skim 1 | . . . . . . . . . . . 1 . . . . Fabricators . | . . . . . . . . . . . . . . . . Repair Stations . | . . . . . . . . . . . . . . . . Recycling Units . | . . . . . . . . . . . . . . . . Scanalyzers . | . . . . . . . . . . . . . . . . Garrison Access . | . . . . . . . . . . . . . . . . Data Cores Recovered 1 | . . . . . . . . . . . 1 . . . . Used . | . . . . . . . . . . . . . . . . Hacking Detections 13 | . 1 . . . . . 2 2 1 4 2 . . . 1 Full Trace Events 2 | . . . . . . . 2 . . . . . . . . Feedback Events . | . . . . . . . . . . . . . . . . Feedback Blocked . | . . . . . . . . . . . . . . . . Robot Schematics Acquired . | . . . . . . . . . . . . . . . . Robots Built . | . . . . . . . . . . . . . . . . Authchips . | . . . . . . . . . . . . . . . . Time . | . . . . . . . . . . . . . . . . Total Robot Build Rating . | . . . . . . . . . . . . . . . . Part Schematics Acquired 1 | . . . . . . . . . . . 1 . . . . Parts Built . | . . . . . . . . . . . . . . . . Authchips . | . . . . . . . . . . . . . . . . Time . | . . . . . . . . . . . . . . . . Total Part Build Rating . | . . . . . . . . . . . . . . . . Part Studies Acquired 3 | . . . . . . . . . . . 3 . . . . Parts Repaired . | . . . . . . . . . . . . . . . . Time . | . . . . . . . . . . . . . . . . Parts Recycled . | . . . . . . . . . . . . . . . . Recycled Matter . | . . . . . . . . . . . . . . . . Retrieved Matter . | . . . . . . . . . . . . . . . . Retrieved Components . | . . . . . . . . . . . . . . . . Parts Scanalyzed . | . . . . . . . . . . . . . . . . Part Schematics Acquired . | . . . . . . . . . . . . . . . . Parts Damaged . | . . . . . . . . . . . . . . . . Bothacking | -11 -10 -10 -9 -9 -9 -8 -8 -7 -6 -5 -4 -4 -4 -4 -4 ------------ Run | Yrd Mat Min Mat Min Exi Min Mat Fac Fac Fac Fac Was Fac DSF Gar Used RIF Installer . | . . . . . . . . . . . . . . . . Robots Hacked . | . . . . . . . . . . . . . . . . Non-combat . | . . . . . . . . . . . . . . . . Combat . | . . . . . . . . . . . . . . . . Robot Hacks Applied . | . . . . . . . . . . . . . . . . Relay Couplers Released . | . . . . . . . . . . . . . . . . Fabnet Peak Effective % . | . . . . . . . . . . . . . . . . Robots Rewired . | . . . . . . . . . . . . . . . . Allies Hacked . | . . . . . . . . . . . . . . . . Hacks Repelled . | . . . . . . . . . . . . . . . . Allies | -11 -10 -10 -9 -9 -9 -8 -8 -7 -6 -5 -4 -4 -4 -4 -4 -------- Run | Yrd Mat Min Mat Min Exi Min Mat Fac Fac Fac Fac Was Fac DSF Gar Total Allies . | . . . . . . . . . . . . . . . . Largest Group . | . . . . . . . . . . . . . . . . Highest-Rated Group . | . . . . . . . . . . . . . . . . Highest-Rated Ally . | . . . . . . . . . . . . . . . . Total Orders . | . . . . . . . . . . . . . . . . Ally Attacks . | . . . . . . . . . . . . . . . . Total Damage . | . . . . . . . . . . . . . . . . Kills . | . . . . . . . . . . . . . . . . Allies Corrupted . | . . . . . . . . . . . . . . . . Allies Melted . | . . . . . . . . . . . . . . . . Intel | -11 -10 -10 -9 -9 -9 -8 -8 -7 -6 -5 -4 -4 -4 -4 -4 ------- Run | Yrd Mat Min Mat Min Exi Min Mat Fac Fac Fac Fac Was Fac DSF Gar Active Infowar (turns) 805 | . . . . . . . . 47 42 368 201 19 10 31 87 Sensors 156 | . . . . . . . . . 2 154 . . . . . Structural 286 | . . . . . . . . . . . 151 19 10 31 75 Seismic 640 | . . . . . . . . 47 42 282 201 19 10 31 8 Machine Analysis 769 | . . . . . . . . 17 42 368 201 19 10 31 81 Triangulation 342 | . . . . . . . . . . . 196 19 10 31 86 Jamming 42 | . . . . . . . . . . 37 5 . . . . ECM 11 | . . . . . . . . . . 11 . . . . . Robot Analysis Total . | . . . . . . . . . . . . . . . . Derelict Logs Recovered . | . . . . . . . . . . . . . . . . Drone Launches . | . . . . . . . . . . . . . . . . Drone Recoveries . | . . . . . . . . . . . . . . . . Exploration | -11 -10 -10 -9 -9 -9 -8 -8 -7 -6 -5 -4 -4 -4 -4 -4 ------------- Run | Yrd Mat Min Mat Min Exi Min Mat Fac Fac Fac Fac Was Fac DSF Gar Turns Passed 1369 | 9 53 27 6 13 79 74 82 247 42 368 201 19 10 31 108 Spaces Moved 2910 | 18 117 58 15 32 197 184 150 509 107 753 330 82 46 110 202 Core 257 | 18 42 . . . . . 95 80 . . . . . . 22 Treads . | . . . . . . . . . . . . . . . . Legs . | . . . . . . . . . . . . . . . . Wheels . | . . . . . . . . . . . . . . . . Hover . | . . . . . . . . . . . . . . . . Flight 2653 | . 75 58 15 32 197 184 55 429 107 753 330 82 46 110 180 Fastest Speed 15 | 50 40 40 40 40 40 40 40 30 32 16 15 22 22 15 22 Average Speed 32 | 50 43 40 40 40 40 40 46 38 32 26 22 22 22 21 35 Slowest Speed 50 | 50 50 40 40 40 40 40 50 50 34 32 23 22 22 27 50 Overloaded Moves 213 | . . . . . . . . 4 . 87 2 . . 76 44 Propulsion Burnouts . | . . . . . . . . . . . . . . . . Robots Hopped 23 | . . 2 . . . 1 3 2 . 11 . . . 1 3 Potential Cave-ins 2 | . . . . . . . . . . 2 . . . . . Cave-ins Triggered . | . . . . . . . . . . . . . . . . Exploration Rate (%) 30 | 4 39 17 2 12 62 43 25 23 4 31 8 81 3 84 45 Regions Visited 15 Branch Regions 4 Pre-discovered Areas . | . . . . . . . . . . . . . . . . Known Exits Taken 11 | . 1 1 1 1 1 1 1 1 1 1 . . 1 . . Unknown Exits Taken 1 | 1 . . . . . . . . . . . . . . . Scrap Searched 2 | . . 1 . . . 1 . . . . . . . . . Spaces Dug 20 | . . . . . . . 3 2 . 12 3 . . . . Terrain Destroyed 20 | . . . . . . . 3 2 . 12 3 . . . . Melee 20 | . . . . . . . 3 2 . 12 3 . . . . Projectile . | . . . . . . . . . . . . . . . . AOE . | . . . . . . . . . . . . . . . . Terrain Rammed 1 | . . . . . . . . . . . . . . . 1 Walls Destroyed . | . . . . . . . . . . . . . . . . Machines Disabled . | . . . . . . . . . . . . . . . . Actions | -11 -10 -10 -9 -9 -9 -8 -8 -7 -6 -5 -4 -4 -4 -4 -4 --------- Run | Yrd Mat Min Mat Min Exi Min Mat Fac Fac Fac Fac Was Fac DSF Gar Total 3177 | 17 117 58 14 31 196 182 152 532 111 849 447 82 45 114 230 Wait 149 | . . . . . . . . 1 . 48 100 . . . . Move 2855 | 17 116 54 14 31 196 181 144 504 106 734 330 81 45 107 195 Hop 17 | . . 1 . . . 1 2 2 . 7 . . . 1 3 Pick Up 18 | . . . . . . . 1 3 1 9 . 1 . 1 2 Fast Attach 30 | . 1 2 . . . . . 7 1 9 4 . . 2 4 Attach 15 | . . . . . . . 1 . 2 4 2 . . 1 5 Detach 4 | . . 1 . . . . . . . . 3 . . . . Swap 13 | . . . . . . . . . . 9 2 . . 1 1 Drop 6 | . . . . . . . . . . 4 1 . . 1 . Fire 2 | . . . . . . . . . . . . . . . 2 Melee 50 | . . . . . . . 4 15 1 25 5 . . . . Ram 1 | . . . . . . . . . . . . . . . 1 Kick . | . . . . . . . . . . . . . . . . Crush . | . . . . . . . . . . . . . . . . Escape Stasis 17 | . . . . . . . . . . . . . . . 17 Rewire . | . . . . . . . . . . . . . . . . Trap . | . . . . . . . . . . . . . . . . Miscellaneous . | . . . . . . . . . . . . . . . . Route ------- -11/Scrapyard -10/Materials -10/Mines -9/Materials -9/Mines -9/Exiles -8/Mines -8/Materials -7/Factory -6/Factory -5/Factory (discovered 2 exits: *Fac / *Upp) -4/Factory -4/Waste -4/Factory -4/DSF -4/Garrison (discovered 1 exit: [*Res]) History --------- Turn | Location | Event 3 | -11/Scrapyard | Discovered new exit (range 15) 10 | -11/Scrapyard | Entered Materials 35 | -10/Materials | Identified exit to Mines 63 | -10/Materials | Entered Mines 87 | -10/Mines | Discovered new exit (range 7) 89 | -10/Mines | Identified exit to Materials 90 | -10/Mines | Entered Materials 90 | -9/Materials | Evolved 2 slots: Propulsion x1, Utility x1 90 | -9/Materials | Discovered new exit (range 14) 96 | -9/Materials | Identified exit to Mines 96 | -9/Materials | Entered Mines 107 | -9/Mines | Deemed a non-threat by the Exiles lab entrance 107 | -9/Mines | Discovered new exit (range 5) 109 | -9/Mines | Identified exit to Exiles 109 | -9/Mines | Entered Exiles 109 | -9/Exiles | Found Exiles lab abandoned 183 | -9/Exiles | Discovered new exit (range 14) 187 | -9/Exiles | Identified exit to Mines 188 | -9/Exiles | Entered Mines 259 | -8/Mines | Discovered new exit (range 7) 261 | -8/Mines | Identified exit to Materials 262 | -8/Mines | Entered Materials 262 | -8/Materials | Evolved 2 slots: Propulsion x1, Utility x1 302 | -8/Materials | Build established: Mutant 340 | -8/Materials | Discovered new exit (range 5) 343 | -8/Materials | Identified exit to Factory 344 | -8/Materials | Entered Factory 344 | -7/Factory | Evolved 2 slots: Propulsion x1, Utility x1 581 | -7/Factory | Discovered new exit (range 15) 586 | -7/Factory | Identified exit to Factory 591 | -7/Factory | Entered another Factory area 591 | -6/Factory | Evolved 2 slots: Propulsion x1, Utility x1 627 | -6/Factory | Discovered new exit (range 13) 631 | -6/Factory | Identified exit to Factory 633 | -6/Factory | Entered another Factory area 633 | -5/Factory | Evolved 2 slots: Utility x2 910 | -5/Factory | Discovered new exit (range 6) 914 | -5/Factory | Identified exit to Upper Caves 996 | -5/Factory | Lost 3 parts (3n) 998 | -5/Factory | Discovered new exit (range 11) 1000 | -5/Factory | Identified exit to Factory 1001 | -5/Factory | Entered another Factory area 1001 | -4/Factory | Evolved 2 slots: Propulsion x1, Utility x1 1202 | -4/Factory | Sucked down chute 1202 | -4/Factory | Entered Waste 1206 | -4/Waste | Found Gamma Bomb Array 1208 | -4/Waste | Spotted C-40 Crusher 1209 | -4/Waste | Spotted C-40 Crusher 1214 | -4/Waste | Spotted C-40 Crusher 1217 | -4/Waste | EMP discharged 1217 | -4/Waste | Spotted C-40 Crusher 1217 | -4/Waste | Spotted C-40 Crusher 1218 | -4/Waste | Discovered new exit (range 14) 1221 | -4/Waste | Identified exit to Factory 1221 | -4/Waste | Entered Factory 1231 | -4/Factory | Identified exit to DSF 1231 | -4/Factory | Entered DSF 1248 | -4/DSF | Additional patrols routed to DSF 1257 | -4/DSF | Discovered new exit (range 14) 1261 | -4/DSF | Identified exit to Garrison 1262 | -4/DSF | Entered Garrison 1268 | -4/Garrison | Triggered checkpoint 1300 | -4/Garrison | Build established: Hacker-Sprinter 1311 | -4/Garrison | System corruption reached 10% 1316 | -4/Garrison | Discovered new exit (range 15) 1323 | -4/Garrison | Attempted to access garrison exit controls, blocked by remote lockdown 1346 | -4/Garrison | Triggered checkpoint 1346 | -4/Garrison | Triggered checkpoint 1347 | -4/Garrison | Triggered checkpoint 1350 | -4/Garrison | Core integrity fell below 50% 1362 | -4/Garrison | Core integrity fell below 20% 1370 | -4/Garrison | Destroyed by C-35 Carver with Carbide Saw Last Messages --------------- 01357_ A bubble of rippling energy engulfs the area. 01357_ Field strength at 94. 01358_ Field strength at 88. 01359_ Field strength at 77. 01360_ Imp. System Shield severed. 01360_ Field strength at 64. 01361_ Field strength at 58. 01361_ Broken Machine Analyzer severed. 01362_ Field strength at 41. 01363_ Field strength at 16. 01364_ Field strength at 7. 01364_ Stasis field depleted. 01365_ Triggered Stasis Trap. 01365_ A bubble of rippling energy engulfs the area. 01365_ Field strength at 94. 01365_ Field strength at 84. 01367_ Adv. Datajack severed. 01368_ Imp. Component Analysis Suite severed. 01368_ Field strength at 52. 01369_ Field strength at 39. Map ----- +----------------------------------------------------+ | ?????????????????????????????????????????????????? | | ?????????????????????????????????????????????????? | | ?????????????????????????????????????????????????? | | ?????????????????????????????????????????????????? | | ?????????????????????????????????????????????????? | | ?????????????????????????????????????????????????? | | ?????????????????????????????????????????????????? | | ?????????????????????????????????????????????????? | | ?????????????????????????????????????????????????? | | ?????????????????????????????????????????????????? | | ?????????????????????????????????????????????????? | | ????????????????????????????#????????????????????? | | ??????????????????????????? #????????????????????? | | ??????????????????????????? #????????????????????? | | ??????????????????????????? #????????????????????? | | ###???????????????????????? #????????????????????? | | ""#???????????????????????? #????????????????????? | | ##??????????????????????? #????????????????????? | | #??????????????????????? #????????????????????? | | #????????????????????+?? #????????????????????? | | +"#??????????????????????? #????????????????????? | | #???????????????????????gg#????????????????????? | | #????????????###+####### ############?????????? | | #######??????# ????????? | | %= #??????# ssscc ????????? | | [ #??????# cgg sc@! ????????? | | %= #??????# #######++######???????????????? | | # ### #??????# #?????????????????????????????? | | # #?# #??????# #?????????????????????????????? | | # #?# #??????# #?????????????????????????????? | | # #?# #??????# +?????????????????????????????? | | # #?# #####??# #?????????????????????????????? | | #?# ## ?# #?????????????????????????????? | | # #?# ## ## #?????????????????????????????? | | ? ??# #?????????????????????????????? | | ? ??+ +?????????????????????????????? | | ?#??# +?????????????????????????????? | | ????# ## ## #?????????????????????????????? | | ????# ## ##! ###???????????????????????????? | | ????" #???????????????????????????? | | ????" #???????????????????????????? | | ????" #???????????????????????????? | | ????" #???????????????????????????? | | ????# ## ## ###???###?????????????????????? | | ????# ## ## #######T####??????????????????? | | ????# +??????????????????? | | ????+ = #????????+?????????? | | ????# #??????????????????? | | ????## ## ##++####+#### #??????????????????? | | ?????# ?# ?# #??? #??# #??????????????????? | +----------------------------------------------------+ Best States ------------- Heat Dissipation 43 Energy Generation 21 Energy Capacity 350 Matter Stores 300 Matter Capacity 300 Sight Range 16 Robot Scan Range 16 Terrain Scan Density 10 ECM Strength 2 Jamming Range 12 Evasion (%) 66 Offensive Hacking 12 Defensive Hacking 12 Item Schematics ----------------- Phase Gun | -4/Factory | Hacked Robot Schematics ------------------ None Fabricated ------------ Nothing Repaired ---------- Nothing Studied --------- Field Propulsion Array | -4/Factory | Hacked Neutrino Core | -4/Factory | Hacked Field Propulsion Drive | -4/Factory | Hacked Alien Tech Used ----------------- None Achievements -------------- Infodabbler We Love MA Challenges ------------ None Game ------ Seed ActiveStormLeg Manual? 0 Play Time 00:33:26 Cumulative 145.7 hours Start 2026.01.26 @ 17:42:15 End 2026.01.26 @ 18:17:55 Sessions 1 Manual Loads 0 Difficulty Rogue Special Mode None Game No. 178 Rogue 173 Adventurer 5 Explorer 0 Win Type - Total 3 Types 2/0/0/1/0/0/0/0/0/0 Lore% 44 Gallery% 61 Achievement% 47 Wizard Run 0 Options --------- Layout 0 ASCII 0 Keyboard 1 Movement Vi Keybinds 0 Fullscreen 1 Font 24/Smallcaps Map View 76x50 Zoom Use 0% Tactical HUD 1 Map Filters NONE Filters NONE Steam 1 RUN: 03a482c6-7e8c-473c-9237-bce6fbb9e32c